fUSD/lending_fUSD_20260126
["ID","MTS","AMOUNT","RATE_DAILY","PERIOD"]
[403663872,1769455066006,-151.0,0.00015956,2]
[403663873,1769455066028,-151.0,0.00015956,2]
[403663874,1769455066042,-30.90100706,0.00015956,2]
[403663875,1769455066051,-250.0,0.00015956,2]
[403663876,1769455066061,-219.09899294,0.00015956,2]
[403663877,1769455066074,-102.3166435,0.00015956,2]
[403663878,1769455066083,-250.0,0.00015956,2]
[403663879,1769455066093,-147.6833565,0.00015956,2]
[403663880,1769455066106,-102.3166435,0.00015956,2]
[403663881,1769455066115,-344.38395401,0.00015956,2]
[403663882,1769455066125,-53.29940249,0.00015956,2]
[403663883,1769455066147,-228.14427802,0.00015956,2]
[403663884,1769455066407,-3261.55631949,0.00015956,2]
[403663885,1769455066434,-151.0,0.00015963,2]
[403663886,1769455066462,-221.768512,0.00015963,2]
[403663887,1769455066491,-1222.35848771,0.00015965,5]
[403663888,1769455066568,-286.6433616,0.00015965,5]
[403663889,1769455066599,-935.7151261,0.00015965,5]
[403663890,1769455066861,-500.0,0.00015965,2]
[403663891,1769455066892,-500.0,0.00015965,2]
[403663892,1769455066921,-500.0,0.00015965,2]
[403663893,1769455066949,-448.17762938,0.00015965,2]
[403663894,1769455066977,-500.0,0.00015965,2]
[403663895,1769455067006,-500.0,0.00015965,2]
[403663896,1769455067034,-500.0,0.00015965,2]
[403663897,1769455067062,-500.0,0.00015965,2]
[403663898,1769455067131,-500.0,0.00015965,2]
[403663899,1769455067158,-500.0,0.00015965,2]
[403663900,1769455067344,-232.22448904,0.00015966,2]
[403663901,1769455067362,-8000.01,0.00015966,2]
[403663902,1769455067383,-10000.01,0.00015966,2]
[403663903,1769455069458,-10000.01,0.00015966,2]
[403663904,1769455069889,-10000.01,0.00015966,2]
[403663905,1769455073242,-10000.01,0.00015966,2]
[403663906,1769455074112,-10000.01,0.00015966,2]
[403663907,1769455074360,-10000.01,0.00015966,2]
[403663908,1769455075489,-4316.7639,0.00015866,2]
[403663909,1769455075521,-1366.4822,0.00015966,2]
[403663910,1769455075601,-10000.01,0.00015966,2]
[403663911,1769455246697,172.0,5.8e-07,2]
[403663919,1769455326567,3312.0,0.000143,5]
[403663937,1769455420626,-172.35234732,0.00015495,2]
[403663938,1769455450022,-256.57295727,0.00015417,2]
[403663939,1769455453244,-259.49426084,0.00015417,2]
[403663940,1769455454144,1000.0,0.00014942,2]
[403663941,1769455455870,-162.54678208,0.00015417,2]
[403663942,1769455457220,-4969.81802119,0.00015417,2]
[403663943,1769455457245,-60.37395762,0.00015417,2]
[403663944,1769455457448,-256.66442238,0.00015495,2]
[403663945,1769455457477,-2851.17,0.00015595,2]
[403663946,1769455457509,-429.01676969,0.00015675,2]
[403663947,1769455457540,-300.0,0.0001569,2]
[403663948,1769455457587,-500.0,0.00015691,5]
[403663949,1769455457621,-500.0,0.00015691,2]
[403663950,1769455457654,-150.0,0.00015691,2]
[403663951,1769455457709,-300.0,0.00015691,2]
[403663952,1769455457797,-200.0,0.00015691,2]
[403663953,1769455457834,-500.0,0.00015691,2]
[403663954,1769455457866,-150.0,0.00015691,2]
[403663955,1769455457899,-150.0,0.00015691,2]
[403663956,1769455457931,-500.0,0.00015691,2]
[403663957,1769455457961,-150.0,0.00015691,2]
[403663958,1769455457999,-500.0,0.00015691,2]
[403663959,1769455458034,-500.0,0.00015691,2]
[403663960,1769455458069,-150.00235713,0.00015696,2]
[403663961,1769455458104,-500.0,0.00015746,5]
[403663962,1769455458140,-500.0,0.00015746,2]
[403663963,1769455458178,-150.0,0.00015746,2]
[403663964,1769455458211,-500.0,0.00015746,2]
[403663965,1769455458245,-500.0,0.00015746,2]
[403663966,1769455458364,-150.0,0.00015746,2]
[403663967,1769455458393,-154.23631951,0.00015746,2]
[403663968,1769455458428,-500.0,0.00015746,2]
[403663969,1769455458456,-250.0,0.00015746,2]
[403663970,1769455458486,-500.0,0.00015746,2]
[403663971,1769455458520,-500.0,0.00015746,2]
[403663972,1769455458549,-500.0,0.00015801,5]
[403663973,1769455458581,-500.0,0.00015801,2]
[403663974,1769455458613,-150.0,0.00015801,2]
[403663975,1769455458643,-500.0,0.00015801,2]
[403663976,1769455458673,-500.0,0.00015801,2]
[403663977,1769455458702,-150.0,0.00015801,2]
[403663978,1769455458734,-500.0,0.00015801,2]
[403663979,1769455458804,-571.24421117,0.00015801,2]
[403663980,1769455458835,-500.0,0.00015801,2]
[403663981,1769455458866,-429.01676969,0.00015855,2]
[403663982,1769455458895,-205.39376385,0.00015855,5]
[403663983,1769455458923,-150.0,0.00015855,2]
[403663984,1769455458953,-500.0,0.00015855,2]
[403663985,1769455458982,-500.0,0.00015855,2]
[403663986,1769455459310,-235.49321653,0.00015855,2]
[403663987,1769455459341,-500.0,0.00015855,2]
[403663988,1769455459368,-500.0,0.00015855,2]
[403663989,1769455459397,-617.71407752,0.00015865,2]
[403663990,1769455461646,-582.28592248,0.00015865,2]
[403663991,1769455461656,-445.77368049,0.00015866,2]
[403663992,1769455461762,-300.0,0.00015866,2]
[403663993,1769455461795,-4709.24234042,0.00015866,2]
[403663994,1769455461837,-140.53303452,0.00015866,2]
[403663995,1769455461915,-281.06606904,0.00015866,2]
[403663996,1769455462120,-159.9262156,0.00015866,2]
[403663997,1769455462134,-9277.95164632,0.00015866,2]
[403663998,1769455462144,-581.52531916,0.00015866,2]
[403663999,1769455462161,-998.44668084,0.00015866,2]
[403664000,1769455462171,-171.087,0.00015866,2]
[403664001,1769455462180,-559.74679314,0.00015866,2]
[403664002,1769455462190,-289.9501,0.00015866,2]
[403664003,1769455462199,-2050.0451,0.00015866,2]
[403664004,1769455462209,-2457.6054,0.00015866,2]
[403664005,1769455462218,-237.0846,0.00015866,2]
[403664006,1769455462227,-500.0,0.0001591,2]
[403664007,1769455462236,-500.0,0.0001591,2]
[403664008,1769455462245,-500.0,0.0001591,2]
[403664009,1769455462254,-394.09500415,0.0001591,2]
[403664010,1769455462263,-174.6191914,0.00015942,2]
[403664011,1769455462272,-578.20924308,0.00015942,2]
[403664012,1769455472310,-500.0,0.00015691,2]
[403664013,1769455472338,-150.0,0.00015691,2]
[403664014,1769455472367,-150.0,0.00015691,2]
[403664015,1769455472395,-150.0,0.00015691,2]
[403664016,1769455472423,-200.0,0.00015691,2]
[403664017,1769455472452,-150.0,0.00015691,2]
[403664018,1769455472480,-200.0,0.00015691,2]
[403664019,1769455472508,-500.0,0.00015691,2]
[403664020,1769455472539,-150.0,0.00015691,2]
[403664021,1769455472568,-500.0,0.00015746,2]
[403664022,1769455472599,-150.0,0.00015746,2]
[403664023,1769455472628,-150.0,0.00015746,2]
[403664024,1769455472656,-500.0,0.00015746,2]
[403664025,1769455472684,-197.42246964,0.00015801,2]
[403664026,1769455472713,-200.0,0.00015801,2]
[403664027,1769455472750,-150.0,0.00015801,2]
[403664028,1769455472783,-438.0,0.00015801,2]
[403664029,1769455472814,-150.0,0.00015855,2]
[403664030,1769455472845,-329.16506072,0.00015955,2]
[403664031,1769455472952,-170.83493928,0.00015955,2]
[403664032,1769455472983,-500.0,0.00015955,2]
[403664033,1769455473015,-500.0,0.00015955,2]
[403664034,1769455473047,-500.0,0.00015955,2]
[403664035,1769455473078,-500.0,0.00015955,2]
[403664036,1769455473109,-500.0,0.00015955,2]
[403664037,1769455473149,-500.0,0.00015955,2]
[403664038,1769455473180,-250.0,0.00015955,2]
[403664039,1769455473211,-500.0,0.00015955,2]
[403664040,1769455473240,-500.0,0.00015955,2]
[403664041,1769455473270,-500.0,0.00015955,2]
[403664042,1769455473809,-170.83493928,0.00015955,2]
[403664043,1769455473828,-158.34012144,0.00015955,2]
[403664044,1769455473872,-170.82493928,0.00015955,2]
[403664045,1769455473897,-116.62827864,0.00015955,2]
[403664046,1769455476216,-183.95,0.00015955,2]
[403664047,1769455487716,-151.0,0.00015893,2]
[403664048,1769455487749,-199.42172136,0.00015955,2]
[403664049,1769455487780,-500.0,0.00015955,2]
[403664050,1769455487814,-500.0,0.00015955,2]
[403664051,1769455487845,-500.0,0.00015955,2]
[403664052,1769455488113,-500.0,0.00015955,2]
[403664053,1769455488146,-500.0,0.00015955,2]
[403664054,1769455488179,-500.0,0.00015955,2]
[403664055,1769455488210,-500.0,0.00015955,2]
[403664056,1769455488241,-500.0,0.00015955,2]
[403664057,1769455488271,-500.0,0.00015955,2]
[403664058,1769455488408,-500.0,0.00015955,2]
[403664059,1769455488437,-500.0,0.00015955,2]
[403664060,1769455488468,-500.0,0.00015955,2]
[403664061,1769455488498,-373.20391951,0.00015955,2]
[403664062,1769455488532,-500.0,0.00015955,2]
[403664063,1769455488565,-500.0,0.00015955,2]
[403664064,1769455488598,-500.0,0.00015955,2]
[403664065,1769455488629,-500.0,0.00015955,2]
[403664066,1769455488661,-500.0,0.00015955,2]
[403664067,1769455488694,-500.0,0.00015955,2]
[403664068,1769455488735,-500.0,0.00015955,2]
[403664069,1769455488764,-500.0,0.00015955,2]
[403664070,1769455488796,-500.0,0.00015955,2]
[403664071,1769455488827,-500.0,0.00015955,2]
[403664072,1769455488858,-500.0,0.00015955,2]
[403664073,1769455488888,-500.0,0.00015955,2]
[403664074,1769455488917,-500.0,0.00015955,2]
[403664075,1769455488948,-500.0,0.00015955,2]
[403664076,1769455488977,-500.0,0.00015955,2]
[403664077,1769455489007,-500.0,0.00015955,2]
[403664078,1769455489446,-52.76871826,0.00015955,2]
[403664079,1769455489459,-447.23128174,0.00015955,2]
[403664080,1769455489468,-52.76871826,0.00015955,2]
[403664081,1769455489496,-409.01146475,0.00015955,2]
[403664082,1769455489519,-0.01,0.00015955,2]
[403664083,1769455490717,-38.20981699,0.00015955,2]
[403664084,1769455490748,-500.0,0.00015955,2]
[403664085,1769455490778,-500.0,0.00015955,2]
[403664086,1769455490808,-500.0,0.00015955,2]
[403664087,1769455490840,-500.0,0.00015955,2]
[403664088,1769455490871,-500.0,0.00015955,2]
[403664089,1769455490900,-500.0,0.00015955,2]
[403664090,1769455490930,-500.0,0.00015955,2]
[403664091,1769455490959,-500.0,0.00015955,2]
[403664092,1769455490988,-500.0,0.00015955,2]
[403664093,1769455491018,-459.6265406,0.00015955,2]
[403664094,1769455491121,-4.33728482,0.00015955,2]
[403664095,1769455491152,-500.0,0.00015955,2]
[403664096,1769455491183,-500.0,0.00015955,2]
[403664097,1769455491212,-500.0,0.00015955,2]
[403664098,1769455491241,-500.0,0.00015955,2]
[403664099,1769455491271,-500.0,0.00015955,2]
[403664100,1769455491301,-500.0,0.00015955,2]
[403664101,1769455491330,-250.0,0.00015955,2]
[403664102,1769455491359,-256.55554551,0.00015956,2]
[403664103,1769455492912,-160.0,0.00015956,2]
[403664104,1769455492949,-419.65078794,0.00015956,2]
[403664105,1769455495559,-228.03374703,0.00015956,2]
[403664106,1769455496361,151.0,0.00015895,2]
[403664107,1769455497530,1632.17431616,0.00015956,2]
[403664108,1769455497660,1156.3806094,0.00015956,2]
[403664109,1769455497717,38.66941378,0.00015956,2]
[403664110,1769455497754,749.08491431,0.00015956,2]
[403664111,1769455499673,-47.7133969,0.00015956,2]
[403664112,1769455499709,-151.0,0.00015956,2]
[403664113,1769455499743,-56.13273435,0.00015956,2]
[403664114,1769455501882,1200.0,0.00015955,2]
[403664115,1769455501939,-193.86726565,0.00015956,2]
[403664116,1769455501960,-20.62558607,0.00015956,2]
[403664117,1769455504799,-130.37441393,0.00015956,2]
[403664118,1769455504821,-50.64967059,0.00015956,2]
[403664119,1769455506055,298.56833097,0.00015956,2]
[403664120,1769455513181,151.0,0.00015897,2]
[403664121,1769455518860,244.516937,0.00015876,2]
[403664122,1769455525400,-199.35032941,0.00015956,2]
[403664123,1769455525423,-146.85572784,0.00015956,2]
[403664124,1769455528054,-103.14427216,0.00015956,2]
[403664125,1769455528079,-58.05890371,0.00015956,2]
[403664126,1769455529343,151.0,0.00015896,2]
[403664127,1769455529663,-158.98184327,0.00015956,2]
[403664128,1769455531126,-32.95925302,0.00015956,2]
[403664129,1769455531150,-151.0,0.00015956,2]
[403664130,1769455531173,-21.72584638,0.00015956,2]
[403664131,1769455533670,-228.27415362,0.00015956,2]
[403664132,1769455533695,-43.7947021,0.00015956,2]
[403664133,1769455545123,-206.2052979,0.00015956,2]
[403664134,1769455545144,-24.99422456,0.00015956,2]
[403664135,1769455545749,151.0,0.00015896,2]
[403664136,1769455547382,-225.00577544,0.00015956,2]
[403664137,1769455547405,-17.48086332,0.00015956,2]
[403664138,1769455549186,-232.51913668,0.00015956,2]
[403664139,1769455549208,-75.47616015,0.00015956,2]
[403664140,1769455551290,-174.52383985,0.00015956,2]
[403664141,1769455551312,-35.4315925,0.00015956,2]
[403664142,1769455552911,-214.5684075,0.00015956,2]
[403664143,1769455552933,-151.0,0.00015956,2]
[403664144,1769455552955,-25.01962564,0.00015956,2]
[403664145,1769455556361,-273.88704109,0.00015956,2]
[403664146,1769455558996,-152.45827984,0.00015956,2]
[403664147,1769455561037,-48.63505343,0.00015956,2]
[403664148,1769455561065,-250.0,0.00015956,2]
[403664149,1769455561087,-43.05665333,0.00015956,2]
[403664150,1769455562932,4118.5559,0.00015866,2]
[403664151,1769455565700,-206.94334667,0.00015956,2]
[403664152,1769455565724,-57.62883078,0.00015956,2]
[403664153,1769455567214,-192.37116922,0.00015956,2]
[403664154,1769455567238,-81.34989742,0.00015956,2]
[403664155,1769455569042,4885.36883203,0.00015866,2]
[403664156,1769455569067,10000.01,0.00015866,2]
[403664157,1769455571349,-298.68893913,0.00015866,2]
[403664158,1769455580381,-5114.64116797,0.00015866,2]
[403664159,1769455584514,-597.64785053,0.00015866,2]
[403664160,1769455586530,-10000.01,0.00015866,2]
[403664161,1769455587758,-150.0,0.0001569,2]
[403664162,1769455587782,-102.52941249,0.00015745,2]
[403664163,1769455589879,-47.47058751,0.00015745,2]
[403664164,1769455589901,-150.0,0.000158,2]
[403664165,1769455589923,-67.73711307,0.00015854,2]
[403664166,1769455593562,-82.26288693,0.00015854,2]
[403664167,1769455593584,-228.54988264,0.00015866,2]
[403664168,1769455595102,-380.0870979,0.00015866,2]
[403664169,1769455598656,-309.02750645,0.00015866,2]
[403664170,1769455601329,-195.95590701,0.00015866,2]
[403664171,1769455601352,-30.47334815,0.00015866,2]
[403664172,1769455615665,-301.39262182,0.00015866,2]
[403664173,1769455619079,-323.09153608,0.00015866,2]
[403664174,1769455624380,-255.69688058,0.00015865,2]
[403664175,1769455626391,-44.30311942,0.00015865,2]
[403664176,1769455626413,-249.65571652,0.00015865,2]
[403664177,1769455628800,-50.34428348,0.00015865,2]
[403664178,1769455628824,-249.65571652,0.00015866,2]
[403664179,1769455635835,-903.50769277,0.00015866,2]
[403664180,1769455635908,-8192.99461446,0.00015866,2]
[403664181,1769455642203,-1961.986,0.00015866,2]
[403664182,1769455642235,-600.0,0.000159,5]
[403664183,1769455642268,-246.76380553,0.00015909,2]
[403664184,1769455642299,-578.20924308,0.00015956,2]
[403664185,1769455642328,-201.932861,0.00015956,2]
[403664186,1769455643207,166.66,0.00015896,2]
[403664187,1769455644503,-69.65010258,0.00015956,2]
[403664188,1769455644525,-250.0,0.00015956,2]
[403664189,1769455644552,-32.37812957,0.00015956,2]
[403664190,1769455646511,-217.62187043,0.00015956,2]
[403664191,1769455646534,-50.14419661,0.00015956,2]
[403664192,1769455649669,-100.85580339,0.00015956,2]
[403664193,1769455649693,-250.0,0.00015956,2]
[403664194,1769455649716,-145.95435513,0.00015956,2]
[403664195,1769455651283,-5.04564487,0.00015956,2]
[403664196,1769455651313,-250.0,0.00015956,2]
[403664197,1769455651343,-151.0,0.00015956,2]
[403664198,1769455651371,-250.0,0.00015956,2]
[403664199,1769455651399,-151.0,0.00015956,2]
[403664200,1769455651426,-250.0,0.00015956,2]
[403664201,1769455651454,-151.0,0.00015956,2]
[403664202,1769455651482,-250.0,0.00015956,2]
[403664203,1769455651510,-151.0,0.00015956,2]
[403664204,1769455651538,-250.0,0.00015956,2]
[403664205,1769455651570,-151.0,0.00015956,2]
[403664206,1769455651598,-500.0,0.00015956,2]
[403664207,1769455651629,-200.0,0.00015956,2]
[403664208,1769455651660,-322.6107,0.00015956,2]
[403664209,1769455651689,-620.0,0.00015956,2]
[403664210,1769455651718,-174.61919141,0.00015956,2]
[403664211,1769455651863,-3543.0,0.00015956,2]
[403664212,1769455651891,-201.93286099,0.00015956,2]
[403664213,1769455651918,-151.0,0.00015956,2]
[403664214,1769455651948,-500.0,0.00015956,2]
[403664215,1769455652171,-250.0,0.00015956,2]
[403664216,1769455652202,-250.0,0.00015956,2]
[403664217,1769455652341,-250.0,0.00015956,2]
[403664218,1769455652370,-222.6043359,0.00015956,2]
[403664219,1769455652399,-2514.57751508,0.00015956,2]
[403664220,1769455652428,-307.0,0.00015956,2]
[403664221,1769455652458,-500.0,0.00015956,2]
[403664222,1769455652486,-500.0,0.00015956,2]
[403664223,1769455652515,-500.0,0.00015956,2]
[403664224,1769455653032,-500.0,0.00015956,2]
[403664225,1769455653042,-151.14427802,0.00015956,2]
[403664226,1769455653067,-307.0,0.00015956,2]
[403664227,1769455653955,-41.85572198,0.00015956,2]
[403664228,1769455653967,-458.14427802,0.00015956,2]
[403664229,1769455653986,-41.85572198,0.00015956,2]
[403664230,1769455653996,-458.14427802,0.00015956,2]
[403664231,1769455654012,-41.85572198,0.00015956,2]
[403664232,1769455654023,-458.14427802,0.00015956,2]
[403664233,1769455654039,-41.85572198,0.00015956,2]
[403664234,1769455654048,-369.79057606,0.00015956,2]
[403664235,1769455654096,-130.20942394,0.00015956,2]
[403664236,1769455654119,-122.50550932,0.00015956,2]
[403664237,1769455654471,-418.44,0.00015474,2]
[403664238,1769455654499,-572.89242255,0.00015956,2]
[403664239,1769455654528,-500.0,0.00015956,2]
[403664240,1769455654559,-500.0,0.00015956,2]
[403664241,1769455654593,-250.0,0.00015956,2]
[403664242,1769455654623,-250.0,0.00015956,2]
[403664243,1769455654658,-250.0,0.00015956,2]
[403664244,1769455654721,-385.40135603,0.00015956,2]
[403664245,1769455654780,-250.0,0.00015956,2]
[403664246,1769455654837,-250.0,0.00015956,2]
[403664247,1769455654895,-500.0,0.00015956,2]
[403664248,1769455654946,-500.0,0.00015956,2]
[403664249,1769455655207,-823.77908852,0.00015956,2]
[403664250,1769455655256,-250.0,0.00015956,2]
[403664251,1769455655311,-151.0,0.00015956,2]
[403664252,1769455655359,-500.0,0.00015956,2]
[403664253,1769455655408,-500.0,0.00015956,2]
[403664254,1769455655456,-250.0,0.00015956,2]
[403664255,1769455655504,-500.0,0.00015956,2]
[403664256,1769455655554,-500.0,0.00015956,2]
[403664257,1769455655605,-250.0,0.00015956,2]
[403664258,1769455655652,-500.0,0.00015956,2]
[403664259,1769455655700,-500.0,0.00015956,2]
[403664260,1769455655751,-200.0,0.00015956,2]
[403664261,1769455656726,-73.77908852,0.00015956,2]
[403664262,1769455656748,-176.22091148,0.00015956,2]
[403664263,1769455656759,-323.77908852,0.00015956,2]
[403664264,1769455656784,-176.22091148,0.00015956,2]
[403664265,1769455656793,-23.77908852,0.00015956,2]
[403664266,1769455656807,-150.45182296,0.00015956,2]
[403664267,1769455656870,-170.11123983,0.00015956,2]
[403664268,1769455657715,-155.65784869,0.00015956,2]
[403664269,1769455657744,-151.0,0.00015956,2]
[403664270,1769455657772,-500.0,0.00015956,2]
[403664271,1769455657802,-250.0,0.00015956,2]
[403664272,1769455657832,-500.0,0.00015956,2]
[403664273,1769455657862,-500.0,0.00015956,2]
[403664274,1769455657891,-250.0,0.00015956,2]
[403664275,1769455657919,-500.0,0.00015956,2]
[403664276,1769455657948,-500.0,0.00015956,2]
[403664277,1769455657976,-250.0,0.00015956,2]
[403664278,1769455658006,-500.0,0.00015956,2]
[403664279,1769455658037,-500.0,0.00015956,2]
[403664280,1769455658067,-250.0,0.00015956,2]
[403664281,1769455658352,-386.69430262,0.00015956,2]
[403664282,1769455660462,-113.30569738,0.00015956,2]
[403664283,1769455660490,-500.0,0.00015956,2]
[403664284,1769455660518,-250.0,0.00015956,2]
[403664285,1769455660547,-500.0,0.00015956,2]
[403664286,1769455660576,-500.0,0.00015956,2]
[403664287,1769455660605,-270.6107,0.00015956,2]
[403664288,1769455660634,-250.0,0.00015956,2]
[403664289,1769455660663,-500.0,0.00015956,2]
[403664290,1769455660693,-1000.0,0.00015956,2]
[403664291,1769455660721,-500.0,0.00015956,2]
[403664292,1769455660750,-250.0,0.00015956,2]
[403664293,1769455660780,-232.17720524,0.00015956,2]
[403664294,1769455660904,-267.82279476,0.00015956,2]
[403664295,1769455660933,-1000.0,0.00015956,2]
[403664296,1769455660961,-250.0,0.00015956,2]
[403664297,1769455660989,-1000.0,0.00015956,2]
[403664298,1769455661018,-250.0,0.00015956,2]
[403664299,1769455661046,-1000.0,0.00015956,2]
[403664300,1769455661075,-250.0,0.00015956,2]
[403664301,1769455661102,-250.0,0.00015956,2]
[403664302,1769455661277,-250.0,0.00015956,2]
[403664303,1769455661750,-17.82279476,0.00015956,2]
[403664304,1769455661774,-250.0,0.00015956,2]
[403664305,1769455661823,-732.17720524,0.00015956,2]
[403664306,1769455661832,-232.18720524,0.00015956,2]
[403664307,1769455661863,-17.81279476,0.00015956,2]
[403664308,1769455661884,-185.52520631,0.00015956,2]
[403664309,1769455663554,-64.47479369,0.00015956,2]
[403664310,1769455663587,-1000.0,0.00015956,2]
[403664311,1769455663616,-250.0,0.00015956,2]
[403664312,1769455663647,-1000.0,0.00015956,2]
[403664313,1769455663677,-1000.0,0.00015956,2]
[403664314,1769455663706,-250.0,0.00015956,2]
[403664315,1769455663735,-705.97670987,0.00015956,2]
[403664316,1769455663765,-250.0,0.00015956,2]
[403664317,1769455663795,-250.0,0.00015956,2]
[403664318,1769455663823,-209.10699288,0.00015956,2]
[403664319,1769455663918,-40.89300712,0.00015956,2]
[403664320,1769455663950,-250.0,0.00015956,2]
[403664321,1769455663982,-250.0,0.00015956,2]
[403664322,1769455664013,-250.0,0.00015956,2]
[403664323,1769455664043,-250.0,0.00015956,2]
[403664324,1769455664071,-250.0,0.00015956,2]
[403664325,1769455664100,-250.0,0.00015956,2]
[403664326,1769455664129,-250.0,0.00015956,2]
[403664327,1769455664159,-313.34353873,0.00015956,2]
[403664328,1769455664188,-250.0,0.00015956,2]
[403664329,1769455664216,-620.0,0.00015956,2]
[403664330,1769455664245,-250.0,0.00015956,2]
[403664331,1769455664278,-250.0,0.00015956,2]
[403664332,1769455664309,-250.0,0.00015956,2]
[403664333,1769455664339,-500.0,0.00015965,2]
[403664334,1769455664368,-500.0,0.00015965,2]
[403664335,1769455664398,-51.5369083,0.00015965,2]
[403664336,1769455665954,-322.6107,0.00015956,2]
[403664337,1769455665964,-177.3893,0.00015965,2]
[403664338,1769455665995,-261.82877394,0.00015965,2]
[403664339,1769455666678,-2210.21423551,0.00015956,2]
[403664340,1769455666708,-151.0,0.00015956,2]
[403664341,1769455666738,-151.0,0.00015956,2]
[403664342,1769455666767,-151.0,0.00015956,2]
[403664343,1769455666800,-9.24501776,0.00015965,2]
[403664344,1769455666830,-500.0,0.00015965,2]
[403664345,1769455666859,-500.0,0.00015965,2]
[403664346,1769455666887,-500.0,0.00015965,2]
[403664347,1769455666917,-500.0,0.00015965,2]
[403664348,1769455666944,-115.18559392,0.00015965,2]
[403664349,1769455667116,-151.0,0.00015956,2]
[403664350,1769455667128,-273.72030562,0.00015965,2]
[403664351,1769455674551,-332.49536576,0.00015864,2]
[403664352,1769455677154,-182.45321182,0.00015864,2]
[403664353,1769455679387,-266.73857501,0.00015864,2]
[403664354,1769455682047,-305.4479027,0.00015864,2]
[403664355,1769455684538,-284.81411226,0.00015864,2]
[403664356,1769455687093,-456.1477153,0.00015864,2]
[403664357,1769455689225,-236.90060527,0.00015864,2]
[403664358,1769455690733,-276.95846356,0.00015864,2]
[403664359,1769455692735,-335.85944691,0.00015864,2]
[403664360,1769455697688,-223.04153644,0.00015864,2]
[403664361,1769455700722,-336.5894704,0.00015864,2]
[403664362,1769455702869,-461.77467345,0.00015864,2]
[403664363,1769455704383,-164.736033,0.00015864,2]
[403664364,1769455706447,-227.3714,0.00015864,2]
[403664365,1769455708640,-185.56695713,0.00015864,2]
[403664366,1769455712047,268.45130844,0.000107,2]
[403664367,1769455714197,-209.41185094,0.00015864,2]
[403664368,1769455717381,-273.73944613,0.00015856,2]
[403664370,1769455722763,-1.75045458,0.00015856,2]
[403664371,1769455722789,-216.23909349,0.00015864,2]
[403664372,1769455725492,-184.41117946,0.00015864,2]
[403664373,1769455727695,-172.40537801,0.00015864,2]
[403664374,1769455731447,-179.954532,0.00015864,2]
[403664375,1769455733029,-378.82289302,0.00015864,2]
[403664376,1769455736598,-285.98804385,0.00015864,2]
[403664377,1769455739805,-217.29392139,0.00015766,2]
[403664378,1769455741444,-119.36168759,0.00015766,2]
[403664379,1769455741468,-144.54811974,0.00015863,2]
[403664380,1769455742957,-155.45188026,0.00015863,2]
[403664381,1769455742990,-30.96286852,0.00015864,2]
[403664382,1769455745607,-256.94891727,0.00015864,2]
[403664383,1769455750133,-171.66569563,0.00015864,2]
[403664385,1769455752394,-377.55361615,0.00015691,2]
[403664386,1769455754154,-122.44638385,0.00015691,2]
[403664387,1769455754175,-291.02847076,0.00015746,2]
[403664388,1769455756305,-189.49383592,0.00015746,2]
[403664389,1769455760175,-19.47769332,0.00015746,2]
[403664390,1769455760197,-223.57338941,0.00015801,2]
[403664391,1769455762932,-276.42661059,0.00015801,2]
[403664392,1769455762957,-23.57338941,0.00015855,2]
[403664393,1769455765938,-251.32815818,0.00015855,2]
[403664394,1769455767921,-211.592463,0.00015855,2]
[403664395,1769455769388,-13.50598941,0.00015855,2]
[403664396,1769455769417,-290.68185391,0.00015864,2]
[403664397,1769455770831,-226.36559816,0.00015864,2]